[Event "Titled Tuesday Blitz January 17 Late 2023"]
[White "Carnicelli, Valerio"]
[Black "Rego, Pedro Filipe"]
[WhiteFideId "856185"]
[BlackFideId "1904310"]
[WhiteElo "2370"]
[BlackElo "2312"]
[Result "1-0"]
[Round "04"]
[TimeControl "180+2"]
[Date "2023.01.17"]
[WhiteClock "0:00:29"]
[BlackClock "0:00:01"]

1. b3 {[%clk 0:03:00]}  Nf6 {[%clk 0:02:54]} 2. Bb2 {[%clk 0:03:01]}  g6 {[%clk 0:02:54]} 3. Bxf6 {[%clk 0:03:00]}  exf6 {[%clk 0:02:55]} 4. c4 {[%clk 0:03:00]}  Bg7 {[%clk 0:02:54]} 5. Nc3 {[%clk 0:03:00]}  f5 {[%clk 0:02:54]} 6. g3 {[%clk 0:03:01]}  O-O {[%clk 0:02:54]} 7. Bg2 {[%clk 0:03:01]}  Nc6 {[%clk 0:02:53]} 8. e3 {[%clk 0:03:01]}  d6 {[%clk 0:02:50]} 9. Nge2 {[%clk 0:03:02]}  h5 {[%clk 0:02:42]} 10. h4 {[%clk 0:02:59]}  Ne5 {[%clk 0:02:38]} 11. d4 {[%clk 0:02:58]}  Ng4 {[%clk 0:02:38]} 12. Nf4 {[%clk 0:02:58]}  c6 {[%clk 0:02:37]} 13. O-O {[%clk 0:02:57]}  a5 {[%clk 0:02:34]} 14. Qd2 {[%clk 0:02:54]}  Re8 {[%clk 0:02:33]} 15. Rfd1 {[%clk 0:02:53]}  Qc7 {[%clk 0:02:28]} 16. a3 {[%clk 0:02:45]}  b6 {[%clk 0:02:17]} 17. b4 {[%clk 0:02:44]}  axb4 {[%clk 0:02:17]} 18. axb4 {[%clk 0:02:45]}  Bb7 {[%clk 0:02:11]} 19. Qb2 {[%clk 0:02:36]}  Qe7 {[%clk 0:01:57]} 20. Rxa8 {[%clk 0:02:31]}  Rxa8 {[%clk 0:01:56]} 21. Nce2 {[%clk 0:01:42]}  Re8 {[%clk 0:01:42]} 22. Qb3 {[%clk 0:01:39]}  Nf6 {[%clk 0:01:33]} 23. c5 {[%clk 0:01:37]}  dxc5 {[%clk 0:01:31]} 24. bxc5 {[%clk 0:01:33]}  bxc5 {[%clk 0:01:26]} 25. Nxg6 {[%clk 0:01:26]}  Qd7 {[%clk 0:01:05]} 26. dxc5 {[%clk 0:01:23]}  Qc7 {[%clk 0:00:57]} 27. Ngf4 {[%clk 0:01:18]}  Ne4 {[%clk 0:00:48]} 28. Nxh5 {[%clk 0:01:10]}  Be5 {[%clk 0:00:48]} 29. Nhf4 {[%clk 0:01:07]}  Nxc5 {[%clk 0:00:39]} 30. Qc2 {[%clk 0:01:06]}  Ne4 {[%clk 0:00:29]} 31. Nd4 {[%clk 0:01:04]}  Bxd4 {[%clk 0:00:19]} 32. Rxd4 {[%clk 0:01:03]}  c5 {[%clk 0:00:19]} 33. Rd1 {[%clk 0:01:02]}  Qe5 {[%clk 0:00:19]} 34. Rd7 {[%clk 0:00:41]}  Bc6 {[%clk 0:00:18]} 35. Ra7 {[%clk 0:00:41]}  Rd8 {[%clk 0:00:08]} 36. Qa2 {[%clk 0:00:32]}  Rf8 {[%clk 0:00:01]} 37. Ng6 {[%clk 0:00:29]} 1-0


[Site "https://www.chess.com"]

[Event "Titled Tuesday Blitz January 17 Late 2023"]
[White "Chor, Kevin"]
[Black "Vasques, Antonio Pedro Freixial"]
[WhiteFideId "2090740"]
[BlackFideId "1908332"]
[WhiteElo "1944"]
[BlackElo "2214"]
[Result "1-0"]
[Round "04"]
[TimeControl "180+2"]
[Date "2023.01.17"]
[WhiteClock "0:00:11"]
[BlackClock "0:00:13"]

1. e4 {[%clk 0:03:00]}  c5 {[%clk 0:02:59]} 2. Nf3 {[%clk 0:03:00]}  Nc6 {[%clk 0:02:59]} 3. d4 {[%clk 0:03:00]}  cxd4 {[%clk 0:02:59]} 4. Nxd4 {[%clk 0:03:00]}  e6 {[%clk 0:02:57]} 5. Nc3 {[%clk 0:03:00]}  Qc7 {[%clk 0:02:57]} 6. Be3 {[%clk 0:02:58]}  a6 {[%clk 0:02:55]} 7. Qf3 {[%clk 0:02:54]}  Nf6 {[%clk 0:02:50]} 8. O-O-O {[%clk 0:02:49]}  Bb4 {[%clk 0:02:43]} 9. Nde2 {[%clk 0:02:02]}  O-O {[%clk 0:02:34]} 10. Bg5 {[%clk 0:01:55]}  Be7 {[%clk 0:02:09]} 11. h4 {[%clk 0:01:52]}  b5 {[%clk 0:02:04]} 12. h5 {[%clk 0:01:26]}  h6 {[%clk 0:01:48]} 13. Bf4 {[%clk 0:01:25]}  Qa5 {[%clk 0:01:47]} 14. e5 {[%clk 0:01:18]}  Ne8 {[%clk 0:01:31]} 15. Kb1 {[%clk 0:01:15]}  Bb7 {[%clk 0:01:28]} 16. Qg3 {[%clk 0:01:04]}  Kh8 {[%clk 0:01:24]} 17. Nc1 {[%clk 0:00:52]}  b4 {[%clk 0:01:14]} 18. Ne4 {[%clk 0:00:47]}  Nxe5 {[%clk 0:01:04]} 19. Bxe5 {[%clk 0:00:47]}  Bxe4 {[%clk 0:01:03]} 20. Rxd7 {[%clk 0:00:48]}  Bf6 {[%clk 0:00:59]} 21. Bxf6 {[%clk 0:00:35]}  Nxf6 {[%clk 0:01:00]} 22. Rd4 {[%clk 0:00:35]}  b3 {[%clk 0:00:35]} 23. axb3 {[%clk 0:00:26]}  Rac8 {[%clk 0:00:30]} 24. Bd3 {[%clk 0:00:24]}  Qb6 {[%clk 0:00:23]} 25. Rxe4 {[%clk 0:00:21]}  Nxe4 {[%clk 0:00:20]} 26. Bxe4 {[%clk 0:00:22]}  f5 {[%clk 0:00:21]} 27. Bd3 {[%clk 0:00:22]}  e5 {[%clk 0:00:21]} 28. Qxe5 {[%clk 0:00:20]}  Rce8 {[%clk 0:00:19]} 29. Qf4 {[%clk 0:00:19]}  Rd8 {[%clk 0:00:17]} 30. Rg1 {[%clk 0:00:18]}  Rd4 {[%clk 0:00:17]} 31. Qe3 {[%clk 0:00:17]}  Qd6 {[%clk 0:00:17]} 32. Ne2 {[%clk 0:00:15]}  Rh4 {[%clk 0:00:16]} 33. g3 {[%clk 0:00:13]}  Rh2 {[%clk 0:00:15]} 34. Nf4 {[%clk 0:00:13]}  Kh7 {[%clk 0:00:13]} 35. g4 {[%clk 0:00:13]}  Qc6 {[%clk 0:00:12]} 36. Bxf5+ {[%clk 0:00:13]}  Rxf5 {[%clk 0:00:12]} 37. gxf5 {[%clk 0:00:13]}  Rh1 {[%clk 0:00:13]} 38. Qg3 {[%clk 0:00:12]}  Rxg1+ {[%clk 0:00:10]} 39. Qxg1 {[%clk 0:00:13]}  Qf3 {[%clk 0:00:10]} 40. Qg6+ {[%clk 0:00:12]}  Kh8 {[%clk 0:00:10]} 41. Ne6 {[%clk 0:00:10]}  Qd1+ {[%clk 0:00:10]} 42. Ka2 {[%clk 0:00:10]}  Qd7 {[%clk 0:00:11]} 43. Qxg7+ {[%clk 0:00:07]}  Qxg7 {[%clk 0:00:10]} 44. Nxg7 {[%clk 0:00:07]}  Kxg7 {[%clk 0:00:11]} 45. b4 {[%clk 0:00:08]}  Kf6 {[%clk 0:00:12]} 46. c4 {[%clk 0:00:08]}  Kg5 {[%clk 0:00:12]} 47. b5 {[%clk 0:00:08]}  axb5 {[%clk 0:00:12]} 48. cxb5 {[%clk 0:00:09]}  Kxh5 {[%clk 0:00:12]} 49. b6 {[%clk 0:00:09]}  Kg5 {[%clk 0:00:12]} 50. b7 {[%clk 0:00:10]}  h5 {[%clk 0:00:13]} 51. b8=Q {[%clk 0:00:11]} 1-0


[Site "https://www.chess.com"]

[Event "Titled Tuesday Blitz January 17 Late 2023"]
[White "Ismagilov, Damir"]
[Black "Liu, Kelsey"]
[WhiteFideId "34199982"]
[BlackFideId "30944481"]
[WhiteElo "2156"]
[BlackElo "2065"]
[Result "1-0"]
[Round "04"]
[TimeControl "180+2"]
[Date "2023.01.17"]
[WhiteClock "0:00:12"]
[BlackClock "0:00:01"]

1. e4 {[%clk 0:02:55]}  c5 {[%clk 0:02:59]} 2. Nf3 {[%clk 0:02:55]}  e6 {[%clk 0:03:00]} 3. g3 {[%clk 0:02:55]}  Nc6 {[%clk 0:02:54]} 4. Bg2 {[%clk 0:02:54]}  Nf6 {[%clk 0:02:40]} 5. Qe2 {[%clk 0:02:54]}  e5 {[%clk 0:02:12]} 6. O-O {[%clk 0:02:41]}  Be7 {[%clk 0:02:12]} 7. c3 {[%clk 0:02:37]}  O-O {[%clk 0:02:12]} 8. d4 {[%clk 0:02:19]}  cxd4 {[%clk 0:01:46]} 9. cxd4 {[%clk 0:02:20]}  exd4 {[%clk 0:01:43]} 10. Rd1 {[%clk 0:01:57]}  Bc5 {[%clk 0:01:41]} 11. e5 {[%clk 0:01:53]}  Re8 {[%clk 0:01:40]} 12. Qc4 {[%clk 0:01:45]}  Nxe5 {[%clk 0:01:28]} 13. Qxc5 {[%clk 0:01:45]}  d6 {[%clk 0:01:28]} 14. Qxd4 {[%clk 0:01:27]}  Bg4 {[%clk 0:01:26]} 15. Nbd2 {[%clk 0:01:17]}  Rc8 {[%clk 0:01:06]} 16. h3 {[%clk 0:01:16]}  Bd7 {[%clk 0:00:59]} 17. Nxe5 {[%clk 0:01:10]}  dxe5 {[%clk 0:00:58]} 18. Qd6 {[%clk 0:01:03]}  Re6 {[%clk 0:00:42]} 19. Qa3 {[%clk 0:01:03]}  Ra6 {[%clk 0:00:40]} 20. Qe3 {[%clk 0:01:02]}  Qe7 {[%clk 0:00:16]} 21. Ne4 {[%clk 0:00:46]}  Nxe4 {[%clk 0:00:12]} 22. Qxe4 {[%clk 0:00:47]}  Bc6 {[%clk 0:00:13]} 23. Qe1 {[%clk 0:00:39]}  Qe6 {[%clk 0:00:08]} 24. Be3 {[%clk 0:00:34]}  h5 {[%clk 0:00:05]} 25. Bxc6 {[%clk 0:00:32]}  Raxc6 {[%clk 0:00:05]} 26. Qf1 {[%clk 0:00:32]}  Rc2 {[%clk 0:00:04]} 27. Rac1 {[%clk 0:00:31]}  Rxc1 {[%clk 0:00:05]} 28. Rxc1 {[%clk 0:00:32]}  Rxc1 {[%clk 0:00:05]} 29. Bxc1 {[%clk 0:00:33]}  Qxa2 {[%clk 0:00:05]} 30. Qb5 {[%clk 0:00:26]}  Qb1 {[%clk 0:00:04]} 31. Qc4 {[%clk 0:00:22]}  b5 {[%clk 0:00:03]} 32. Qc8+ {[%clk 0:00:21]}  Kh7 {[%clk 0:00:04]} 33. Kh2 {[%clk 0:00:20]}  a5 {[%clk 0:00:02]} 34. Qc5 {[%clk 0:00:13]}  b4 {[%clk 0:00:02]} 35. Be3 {[%clk 0:00:12]}  Qxb2 {[%clk 0:00:02]} 36. Qxa5 {[%clk 0:00:13]}  b3 {[%clk 0:00:01]} 37. Qd5 {[%clk 0:00:12]} 1-0


[Site "https://www.chess.com"]

[Event "Titled Tuesday Blitz January 17 Late 2023"]
[White "Wang, Alexander J"]
[Black "Khripachenko, Alexander"]
[WhiteFideId "30955270"]
[BlackFideId "54184975"]
[WhiteElo "1815"]
[BlackElo "2110"]
[Result "0-1"]
[Round "04"]
[TimeControl "180+2"]
[Date "2023.01.17"]
[WhiteClock "0:00:20"]
[BlackClock "0:01:31"]

1. e4 {[%clk 0:03:00]}  c5 {[%clk 0:02:57]} 2. Nf3 {[%clk 0:02:59]}  d6 {[%clk 0:02:57]} 3. d4 {[%clk 0:02:59]}  cxd4 {[%clk 0:02:58]} 4. Nxd4 {[%clk 0:03:00]}  Nf6 {[%clk 0:02:58]} 5. Nc3 {[%clk 0:03:01]}  a6 {[%clk 0:02:59]} 6. g3 {[%clk 0:03:01]}  b5 {[%clk 0:02:56]} 7. Bg2 {[%clk 0:03:00]}  Bb7 {[%clk 0:02:57]} 8. O-O {[%clk 0:02:55]}  e6 {[%clk 0:02:57]} 9. a3 {[%clk 0:02:47]}  Nbd7 {[%clk 0:02:53]} 10. Be3 {[%clk 0:02:47]}  Qc7 {[%clk 0:02:53]} 11. h3 {[%clk 0:02:41]}  Be7 {[%clk 0:02:53]} 12. g4 {[%clk 0:02:40]}  Nc5 {[%clk 0:02:54]} 13. f3 {[%clk 0:02:38]}  g6 {[%clk 0:02:45]} 14. Nde2 {[%clk 0:02:20]}  O-O {[%clk 0:02:39]} 15. b4 {[%clk 0:02:13]}  Ncd7 {[%clk 0:02:36]} 16. f4 {[%clk 0:02:11]}  Nb6 {[%clk 0:02:33]} 17. g5 {[%clk 0:02:09]}  Nh5 {[%clk 0:02:30]} 18. Bf3 {[%clk 0:02:00]}  Nc4 {[%clk 0:02:30]} 19. Bf2 {[%clk 0:01:56]}  Ng7 {[%clk 0:02:29]} 20. h4 {[%clk 0:01:48]}  Rad8 {[%clk 0:02:27]} 21. Bd4 {[%clk 0:01:42]}  e5 {[%clk 0:02:26]} 22. Bf2 {[%clk 0:01:38]}  Rc8 {[%clk 0:01:43]} 23. h5 {[%clk 0:01:33]}  exf4 {[%clk 0:01:41]} 24. hxg6 {[%clk 0:01:05]}  hxg6 {[%clk 0:01:36]} 25. Nxf4 {[%clk 0:01:02]}  Nb2 {[%clk 0:01:34]} 26. Qd2 {[%clk 0:00:20]}  Qxc3 {[%clk 0:01:31]} 27. Qxc3 {[%clk 0:00:19]}  Rxc3 {[%clk 0:01:31]} 28. Bd4 {[%clk 0:00:20]}  Rxc2 {[%clk 0:01:31]} 0-1


[Site "https://www.chess.com"]

[Event "Titled Tuesday Blitz January 17 Late 2023"]
[White "Fernandez Garcia, Gumersindo"]
[Black "Medeiros,Thauane Ferreira"]
[WhiteFideId "24516740"]
[BlackFideId "2134470"]
[WhiteElo "2160"]
[BlackElo "1854"]
[Result "0-1"]
[Round "04"]
[TimeControl "180+2"]
[Date "2023.01.17"]
[WhiteClock "0:00:20"]
[BlackClock "0:00:54"]

1. d4 {[%clk 0:02:59]}  d5 {[%clk 0:02:59]} 2. Bf4 {[%clk 0:03:00]}  Nf6 {[%clk 0:02:58]} 3. e3 {[%clk 0:02:58]}  c5 {[%clk 0:02:51]} 4. c3 {[%clk 0:02:55]}  Nc6 {[%clk 0:02:49]} 5. Nd2 {[%clk 0:02:55]}  Bf5 {[%clk 0:02:48]} 6. Ngf3 {[%clk 0:02:50]}  Qb6 {[%clk 0:02:44]} 7. Qb3 {[%clk 0:02:49]}  c4 {[%clk 0:02:41]} 8. Qxb6 {[%clk 0:02:41]}  axb6 {[%clk 0:02:42]} 9. a3 {[%clk 0:02:41]}  h6 {[%clk 0:02:40]} 10. h3 {[%clk 0:02:41]}  b5 {[%clk 0:02:38]} 11. Rc1 {[%clk 0:02:40]}  Nd7 {[%clk 0:02:36]} 12. g4 {[%clk 0:02:38]}  Bh7 {[%clk 0:02:34]} 13. Bg2 {[%clk 0:02:37]}  Nb6 {[%clk 0:02:32]} 14. Ne5 {[%clk 0:02:27]}  Na5 {[%clk 0:02:26]} 15. e4 {[%clk 0:02:17]}  e6 {[%clk 0:02:21]} 16. exd5 {[%clk 0:02:02]}  exd5 {[%clk 0:02:22]} 17. O-O {[%clk 0:02:01]}  f6 {[%clk 0:02:08]} 18. Nef3 {[%clk 0:01:54]}  Na4 {[%clk 0:02:08]} 19. Rfe1+ {[%clk 0:01:54]}  Kd7 {[%clk 0:02:00]} 20. Bg3 {[%clk 0:01:07]}  Nxb2 {[%clk 0:01:57]} 21. Re3 {[%clk 0:01:03]}  Bxa3 {[%clk 0:01:51]} 22. Ra1 {[%clk 0:01:00]}  Nb3 {[%clk 0:01:38]} 23. Nxb3 {[%clk 0:01:00]}  cxb3 {[%clk 0:01:39]} 24. Nh4 {[%clk 0:00:59]}  Nc4 {[%clk 0:01:35]} 25. Nf5 {[%clk 0:00:53]}  Bxf5 {[%clk 0:01:31]} 26. gxf5 {[%clk 0:00:51]}  Nxe3 {[%clk 0:01:22]} 27. fxe3 {[%clk 0:00:51]}  Bb2 {[%clk 0:01:20]} 28. Rf1 {[%clk 0:00:45]}  Bxc3 {[%clk 0:01:19]} 29. Bxd5 {[%clk 0:00:44]}  b2 {[%clk 0:01:14]} 30. Be4 {[%clk 0:00:21]}  Ra1 {[%clk 0:00:59]} 31. Bb1 {[%clk 0:00:20]}  Rha8 {[%clk 0:00:56]} 32. Kf2 {[%clk 0:00:20]}  Rxb1 {[%clk 0:00:54]} 0-1


[Site "https://www.chess.com"]

[Event "Titled Tuesday Blitz January 17 Late 2023"]
[White "Ozates, Tuna"]
[Black "Cardoso Cardoso, Jose Gabriel"]
[WhiteFideId "6354521"]
[BlackFideId "4430492"]
[WhiteElo "2251"]
[BlackElo "2492"]
[Result "1-0"]
[Round "04"]
[TimeControl "180+2"]
[Date "2023.01.17"]
[WhiteClock "0:00:52"]
[BlackClock "0:00:14"]

1. e4 {[%clk 0:02:56]}  e6 {[%clk 0:03:00]} 2. d4 {[%clk 0:02:54]}  d5 {[%clk 0:03:00]} 3. exd5 {[%clk 0:02:55]}  exd5 {[%clk 0:03:00]} 4. Bd3 {[%clk 0:02:56]}  Bd6 {[%clk 0:02:59]} 5. Qf3 {[%clk 0:02:56]}  Nc6 {[%clk 0:02:54]} 6. c3 {[%clk 0:02:55]}  Nge7 {[%clk 0:02:54]} 7. Bf4 {[%clk 0:02:54]}  h5 {[%clk 0:02:38]} 8. h3 {[%clk 0:02:51]}  Be6 {[%clk 0:02:37]} 9. Ne2 {[%clk 0:02:50]}  Qd7 {[%clk 0:02:37]} 10. Nd2 {[%clk 0:02:48]}  O-O-O {[%clk 0:02:35]} 11. O-O-O {[%clk 0:02:47]}  Kb8 {[%clk 0:02:29]} 12. Rhe1 {[%clk 0:02:41]}  h4 {[%clk 0:02:27]} 13. Nb3 {[%clk 0:02:24]}  Rde8 {[%clk 0:02:03]} 14. Nc5 {[%clk 0:02:02]}  Bxc5 {[%clk 0:02:01]} 15. dxc5 {[%clk 0:02:02]}  Bf5 {[%clk 0:01:57]} 16. Bb5 {[%clk 0:01:56]}  Qc8 {[%clk 0:01:34]} 17. Bd3 {[%clk 0:01:31]}  Bxd3 {[%clk 0:01:31]} 18. Qxd3 {[%clk 0:01:28]}  Qd7 {[%clk 0:01:18]} 19. b4 {[%clk 0:01:23]}  Nd8 {[%clk 0:01:07]} 20. Nd4 {[%clk 0:01:17]}  a6 {[%clk 0:00:55]} 21. b5 {[%clk 0:01:02]}  axb5 {[%clk 0:00:18]} 22. Nxb5 {[%clk 0:01:03]}  Ne6 {[%clk 0:00:18]} 23. Rxe6 {[%clk 0:01:03]}  Qxe6 {[%clk 0:00:14]} 24. Nxc7 {[%clk 0:00:55]}  Qf6 {[%clk 0:00:14]} 25. Nxd5+ {[%clk 0:00:52]} 1-0


[Site "https://www.chess.com"]

[Event "Titled Tuesday Blitz January 17 Late 2023"]
[White "Ibadov, Dashgyn"]
[Black "Shubin, Daniel"]
[WhiteFideId "24107514"]
[BlackFideId "30936470"]
[WhiteElo "2391"]
[BlackElo "2231"]
[Result "1-0"]
[Round "04"]
[TimeControl "180+2"]
[Date "2023.01.17"]
[WhiteClock "0:01:34"]
[BlackClock "0:00:51"]

1. e4 {[%clk 0:03:00]}  e6 {[%clk 0:02:59]} 2. d4 {[%clk 0:03:00]}  d5 {[%clk 0:03:00]} 3. Nd2 {[%clk 0:02:55]}  Be7 {[%clk 0:02:57]} 4. Ngf3 {[%clk 0:02:54]}  Nf6 {[%clk 0:02:55]} 5. Bd3 {[%clk 0:02:48]}  c5 {[%clk 0:02:52]} 6. c3 {[%clk 0:02:42]}  O-O {[%clk 0:02:50]} 7. e5 {[%clk 0:02:40]}  Nfd7 {[%clk 0:02:50]} 8. h4 {[%clk 0:02:30]}  Nc6 {[%clk 0:02:48]} 9. Bxh7+ {[%clk 0:02:23]}  Kxh7 {[%clk 0:02:32]} 10. Ng5+ {[%clk 0:02:22]}  Kg6 {[%clk 0:02:02]} 11. h5+ {[%clk 0:01:57]}  Kh6 {[%clk 0:01:53]} 12. Ndf3 {[%clk 0:01:55]}  Qe8 {[%clk 0:01:36]} 13. Qc2 {[%clk 0:01:39]}  f5 {[%clk 0:01:13]} 14. exf6 {[%clk 0:01:38]}  Bxf6 {[%clk 0:00:51]} 15. Qh7# {[%clk 0:01:34]} 1-0


[Site "https://www.chess.com"]

[Event "Titled Tuesday Blitz January 17 Late 2023"]
[White "Santos Flores, Alberto"]
[Black "Jorajuria Mendoza, Algol"]
[WhiteFideId "3601234"]
[BlackFideId "5128897"]
[WhiteElo "2164"]
[BlackElo "2069"]
[Result "0-1"]
[Round "04"]
[TimeControl "180+2"]
[Date "2023.01.17"]
[WhiteClock "0:01:13"]
[BlackClock "0:00:13"]

1. e4 {[%clk 0:03:00]}  c5 {[%clk 0:02:57]} 2. Nf3 {[%clk 0:03:00]}  b6 {[%clk 0:02:58]} 3. d4 {[%clk 0:03:00]}  cxd4 {[%clk 0:02:57]} 4. Nxd4 {[%clk 0:03:01]}  Bb7 {[%clk 0:02:58]} 5. Nc3 {[%clk 0:02:59]}  Nc6 {[%clk 0:02:52]} 6. Be3 {[%clk 0:02:58]}  Nf6 {[%clk 0:02:41]} 7. f3 {[%clk 0:02:56]}  g6 {[%clk 0:02:30]} 8. Bc4 {[%clk 0:02:54]}  Bg7 {[%clk 0:02:29]} 9. Qd2 {[%clk 0:02:53]}  h6 {[%clk 0:02:20]} 10. O-O-O {[%clk 0:02:51]}  Na5 {[%clk 0:02:15]} 11. Bb3 {[%clk 0:02:49]}  Nxb3+ {[%clk 0:02:13]} 12. axb3 {[%clk 0:02:48]}  Rc8 {[%clk 0:02:02]} 13. g4 {[%clk 0:02:37]}  d6 {[%clk 0:01:29]} 14. Kb1 {[%clk 0:02:32]}  h5 {[%clk 0:01:17]} 15. g5 {[%clk 0:02:23]}  Nd7 {[%clk 0:01:17]} 16. f4 {[%clk 0:02:22]}  Nc5 {[%clk 0:01:13]} 17. Nd5 {[%clk 0:02:22]}  e6 {[%clk 0:01:08]} 18. Nc3 {[%clk 0:02:12]}  Nxe4 {[%clk 0:01:06]} 19. Nxe4 {[%clk 0:02:11]}  Bxe4 {[%clk 0:01:07]} 20. Rhe1 {[%clk 0:02:11]}  Bxd4 {[%clk 0:01:06]} 21. Qxd4 {[%clk 0:02:05]}  Bxc2+ {[%clk 0:01:04]} 22. Ka2 {[%clk 0:02:03]}  O-O {[%clk 0:00:46]} 23. Rd2 {[%clk 0:02:01]}  Qd7 {[%clk 0:00:36]} 24. Qxd6 {[%clk 0:01:51]}  Qxd6 {[%clk 0:00:20]} 25. Rxd6 {[%clk 0:01:52]}  Rfd8 {[%clk 0:00:21]} 26. Rxd8+ {[%clk 0:01:51]}  Rxd8 {[%clk 0:00:21]} 27. Rc1 {[%clk 0:01:51]}  Rc8 {[%clk 0:00:22]} 28. b4 {[%clk 0:01:45]}  Kf8 {[%clk 0:00:21]} 29. b3 {[%clk 0:01:42]}  Rc3 {[%clk 0:00:18]} 30. Bd2 {[%clk 0:01:37]}  Bxb3+ {[%clk 0:00:18]} 31. Kb2 {[%clk 0:01:37]}  Rxc1 {[%clk 0:00:18]} 32. Bxc1 {[%clk 0:01:37]}  Bd5 {[%clk 0:00:18]} 33. Kc3 {[%clk 0:01:36]}  Ke7 {[%clk 0:00:15]} 34. Kd4 {[%clk 0:01:36]}  Kd6 {[%clk 0:00:15]} 35. Ba3 {[%clk 0:01:31]}  Kc6 {[%clk 0:00:15]} 36. Bc1 {[%clk 0:01:28]}  Kb5 {[%clk 0:00:16]} 37. Bd2 {[%clk 0:01:29]}  a5 {[%clk 0:00:16]} 38. bxa5 {[%clk 0:01:28]}  bxa5 {[%clk 0:00:17]} 39. Kc3 {[%clk 0:01:29]}  a4 {[%clk 0:00:16]} 40. Kb2 {[%clk 0:01:26]}  Kc4 {[%clk 0:00:14]} 41. Ka3 {[%clk 0:01:26]}  Bc6 {[%clk 0:00:15]} 42. Bb4 {[%clk 0:01:25]}  Kd3 {[%clk 0:00:15]} 43. Be1 {[%clk 0:01:18]}  Ke3 {[%clk 0:00:12]} 44. Bg3 {[%clk 0:01:18]}  Kf3 {[%clk 0:00:12]} 45. Kb4 {[%clk 0:01:15]}  Kg4 {[%clk 0:00:12]} 46. Ka3 {[%clk 0:01:13]}  h4 {[%clk 0:00:13]} 47. Bf2 {[%clk 0:01:13]}  Kh3 {[%clk 0:00:13]} 48. Bg1 {[%clk 0:01:13]}  Kg2 {[%clk 0:00:13]} 49. Bd4 {[%clk 0:01:13]}  Kxh2 {[%clk 0:00:13]} 0-1


[Site "https://www.chess.com"]

[Event "Titled Tuesday Blitz January 17 Late 2023"]
[White "Graif, William"]
[Black "Dylag, Emilia"]
[WhiteFideId "2609835"]
[BlackFideId "21805172"]
[WhiteElo "2304"]
[BlackElo "2095"]
[Result "1-0"]
[Round "04"]
[TimeControl "180+2"]
[Date "2023.01.17"]
[WhiteClock "0:00:17"]
[BlackClock "0:00:28"]

1. e4 {[%clk 0:02:56]}  e5 {[%clk 0:03:00]} 2. Nf3 {[%clk 0:02:53]}  Nc6 {[%clk 0:03:00]} 3. Nc3 {[%clk 0:02:52]}  Nf6 {[%clk 0:02:59]} 4. d4 {[%clk 0:02:52]}  exd4 {[%clk 0:02:58]} 5. Nxd4 {[%clk 0:02:49]}  Bb4 {[%clk 0:02:57]} 6. Nxc6 {[%clk 0:02:49]}  bxc6 {[%clk 0:02:57]} 7. Bd3 {[%clk 0:02:49]}  d5 {[%clk 0:02:58]} 8. exd5 {[%clk 0:02:49]}  O-O {[%clk 0:02:58]} 9. O-O {[%clk 0:02:49]}  cxd5 {[%clk 0:02:58]} 10. Bg5 {[%clk 0:02:47]}  Rb8 {[%clk 0:02:58]} 11. Nxd5 {[%clk 0:02:02]}  Qxd5 {[%clk 0:02:48]} 12. Bxf6 {[%clk 0:02:02]}  Qc6 {[%clk 0:02:35]} 13. Qh5 {[%clk 0:01:45]}  g6 {[%clk 0:02:26]} 14. Qh4 {[%clk 0:01:38]}  Bc5 {[%clk 0:02:11]} 15. Bc3 {[%clk 0:01:29]}  Bb7 {[%clk 0:01:46]} 16. Qh3 {[%clk 0:01:19]}  Rbe8 {[%clk 0:01:35]} 17. Rae1 {[%clk 0:01:15]}  Rxe1 {[%clk 0:01:32]} 18. Rxe1 {[%clk 0:01:15]}  Re8 {[%clk 0:01:31]} 19. Rxe8+ {[%clk 0:01:06]}  Qxe8 {[%clk 0:01:32]} 20. Qh6 {[%clk 0:01:01]}  Bf8 {[%clk 0:01:32]} 21. Qf4 {[%clk 0:00:58]}  Qc6 {[%clk 0:01:26]} 22. Bf1 {[%clk 0:00:53]}  Bg7 {[%clk 0:01:21]} 23. Bxg7 {[%clk 0:00:50]}  Kxg7 {[%clk 0:01:22]} 24. Qd4+ {[%clk 0:00:48]}  Kg8 {[%clk 0:01:21]} 25. Qxa7 {[%clk 0:00:46]}  h5 {[%clk 0:01:10]} 26. c3 {[%clk 0:00:38]}  g5 {[%clk 0:01:10]} 27. Qe3 {[%clk 0:00:37]}  f6 {[%clk 0:01:08]} 28. b3 {[%clk 0:00:32]}  h4 {[%clk 0:01:07]} 29. h3 {[%clk 0:00:31]}  Kf7 {[%clk 0:01:02]} 30. Bc4+ {[%clk 0:00:26]}  Kf8 {[%clk 0:00:59]} 31. f3 {[%clk 0:00:26]}  Qd6 {[%clk 0:00:54]} 32. Qe6 {[%clk 0:00:20]}  Qxe6 {[%clk 0:00:48]} 33. Bxe6 {[%clk 0:00:21]}  Ke7 {[%clk 0:00:48]} 34. Bc4 {[%clk 0:00:20]}  Kd6 {[%clk 0:00:45]} 35. Kf2 {[%clk 0:00:20]}  Bc8 {[%clk 0:00:45]} 36. Ke3 {[%clk 0:00:21]}  Bf5 {[%clk 0:00:45]} 37. Kd4 {[%clk 0:00:20]}  c5+ {[%clk 0:00:44]} 38. Ke3 {[%clk 0:00:20]}  Bb1 {[%clk 0:00:44]} 39. a3 {[%clk 0:00:19]}  Ba2 {[%clk 0:00:44]} 40. Kd3 {[%clk 0:00:18]}  Bb1+ {[%clk 0:00:43]} 41. Ke3 {[%clk 0:00:17]}  Ba2 {[%clk 0:00:43]} 42. Bg8 {[%clk 0:00:17]}  Ke5 {[%clk 0:00:41]} 43. a4 {[%clk 0:00:16]}  Kd6 {[%clk 0:00:37]} 44. Bc4 {[%clk 0:00:16]}  Kc6 {[%clk 0:00:35]} 45. a5 {[%clk 0:00:16]}  Bb1 {[%clk 0:00:33]} 46. b4 {[%clk 0:00:16]}  cxb4 {[%clk 0:00:33]} 47. cxb4 {[%clk 0:00:16]}  Bf5 {[%clk 0:00:32]} 48. Kd4 {[%clk 0:00:17]}  Bc2 {[%clk 0:00:31]} 49. b5+ {[%clk 0:00:17]}  Kb7 {[%clk 0:00:30]} 50. Kc5 {[%clk 0:00:18]}  Bf5 {[%clk 0:00:29]} 51. Bd5+ {[%clk 0:00:18]}  Ka7 {[%clk 0:00:28]} 52. b6+ {[%clk 0:00:17]}  Kb8 {[%clk 0:00:28]} 53. a6 {[%clk 0:00:17]} 1-0


[Site "https://www.chess.com"]